bitfinex-derivatives/quotes_ETHF0:USTF0_20250224
["timestamp","ask_amount","ask_price","bid_price","bid_amount"]
[1740438424712,6.318,2535.1,2534.8,3.2078]
[1740438425014,6.318,2535.1,2534.3,0.00592171]
[1740438425215,0.78908,2534.8,2534.6,0.78913]
[1740438425713,6.318,2535.1,2534.5,0.78915]
[1740438425906,0.78914,2534.6,2534.4,0.78919]
[1740438426107,0.78918,2534.5,2534.3,4.00293171]
[1740438426310,1.97259,2535.0,2534.3,3.21372171]
[1740438426516,0.78915,2534.6,2534.3,4.00294171]
[1740438426710,1.97259,2535.0,2534.3,4.00294171]
[1740438427015,0.78919,2534.5,2534.3,3.21372171]
[1740438427316,0.7892,2534.4,2534.3,0.00592171]
[1740438427521,0.7892,2534.4,2534.3,3.21372171]
[1740438429319,3.2078,2534.8,2534.3,3.21372171]
[1740438429612,0.78912,2534.7,2534.5,0.78915]
[1740438429814,10.97745,2535.2,2534.3,3.21372171]
[1740438430016,0.78912,2534.7,2534.5,0.78915]
[1740438430317,10.97745,2535.2,2534.3,3.21372171]
[1740438430519,10.97745,2535.2,2534.6,3.99691]
[1740438430520,0.78908,2534.8,2534.6,3.99691]
[1740438430817,0.78906,2534.9,2534.7,0.78911]
[1740438431115,0.78906,2534.9,2534.7,0.78909]
[1740438431711,0.78906,2534.9,2534.6,3.2078]
[1740438431911,0.78905,2534.9,2534.6,3.2078]
[1740438432112,0.78905,2534.9,2534.7,0.78908]
[1740438432319,0.78905,2534.9,2534.6,3.2078]
[1740438432620,0.78919,2534.5,2534.3,0.79514171]
[1740438432807,6.312,2534.8,2534.3,0.00592171]
[1740438433008,0.78919,2534.5,2534.3,0.00592171]
[1740438433207,1.97277,2534.7,2534.3,0.00592171]
[1740438433418,0.7892,2534.4,2534.3,0.00592171]
[1740438434313,6.0,2534.4,2534.2,3.2078]
[1740438434517,0.78936,2533.9,2533.8,3.2078]
[1740438434819,6.311,2533.9,2533.8,2.63869298]
[1740438435207,9.5188,2533.9,2533.3,3.2078]
[1740438435412,9.5188,2533.9,2532.8,1.97425]
[1740438435607,11.49814171,2533.9,2533.3,0.79545171]
[1740438435808,3.2078,2533.6,2533.3,0.00592171]
[1740438436012,3.2078,2533.6,2533.5,0.78948]
[1740438437917,3.2078,2533.6,2533.4,0.7895]
[1740438438318,3.99725,2533.6,2533.4,0.7895]
[1740438438820,3.2078,2533.6,2533.3,0.00592171]
[1740438439019,3.2078,2533.6,2533.5,0.78948]
[1740438440712,3.99725,2533.6,2533.4,0.7895]
[1740438440919,3.2078,2533.6,2533.5,0.78948]
[1740438441517,6.31392171,2533.9,2533.5,0.78948]
[1740438441713,6.31392171,2533.9,2533.8,0.78939]
[1740438441919,0.00592171,2533.9,2533.8,0.78939]
[1740438442727,0.00592171,2533.9,2533.8,41.58939]
[1740438442919,3.2078,2534.3,2534.2,0.78926]
[1740438442920,1.79076,2534.3,2534.2,0.78926]
[1740438443219,3.94344,2536.1,2534.2,0.78926]
[1740438443220,6.66e-06,2534.8,2534.7,0.78911]
[1740438443422,6.14e-06,2535.6,2535.5,0.78886]
[1740438443725,0.26973866,2537.3,2537.2,0.78833]
[1740438444318,14.73959025,2538.0,2537.2,3.99613]
[1740438444621,14.73959025,2538.0,2537.0,0.00592171]
[1740438444622,14.73959025,2538.0,2537.9,0.78811]
[1740438444921,14.73959025,2538.0,2537.6,40.8]
[1740438445122,14.73959025,2538.0,2537.8,3.2078]
[1740438445423,14.73959025,2538.0,2537.9,0.78811]
[1740438445728,14.73959025,2538.0,2537.8,3.2078]
[1740438446429,14.73959025,2538.0,2537.9,0.78811]
[1740438447323,0.00280174,2538.0,2537.9,6.78811]
[1740438447624,0.00280174,2538.0,2537.9,0.78811]
[1740438447821,0.78785,2538.8,2537.9,6.0]
[1740438448023,3.2078,2539.1,2538.3,0.78796]
[1740438448223,3.2078,2538.8,2538.1,3.2078]
[1740438448428,3.2078,2538.8,2538.3,0.78797]
[1740438448825,3.2078,2539.1,2538.1,3.2078]
[1740438449028,0.78783,2538.8,2538.1,3.2078]
[1740438449220,0.7878,2539.0,2538.5,0.78791]
[1740438449425,3.2078,2538.9,2538.4,0.78793]
[1740438449724,0.78785,2538.8,2538.1,3.2078]
[1740438449924,3.2078,2538.9,2538.4,0.78794]
[1740438450122,3.2078,2538.6,2537.8,3.2078]
[1740438450327,5.8912,2539.2,2536.3,3.94292]
[1740438450328,3.2078,2537.9,2536.3,3.2078]
[1740438450522,3.2078,2536.4,2535.1,1.34246872]
[1740438450719,3.2078,2535.6,2534.3,12.2651774]
[1740438450923,6.298,2535.9,2534.3,15.4729774]
[1740438451119,0.78889,2535.4,2534.9,0.78904]
[1740438451324,3.2078,2535.1,2534.8,0.00590958]
[1740438451522,3.21366914,2535.4,2535.3,0.78892]
[1740438452030,3.2078,2536.2,2535.3,6.0]
[1740438452228,3.2078,2536.4,2535.4,3.2078]
[1740438452428,3.2078,2536.0,2535.4,3.2078]
[1740438452624,3.2078,2536.0,2535.9,0.78873]
[1740438452827,3.2078,2536.4,2535.8,3.2078]
[1740438453125,3.2078,2536.5,2536.4,0.78856]
[1740438453326,3.2078,2536.9,2536.0,3.2078]
[1740438453523,3.99634,2536.6,2535.7,5.17975]
[1740438453829,3.2078,2536.1,2535.0,3.2078]
[1740438454029,0.78883,2535.6,2535.2,0.78893]
[1740438454327,3.2078,2535.5,2535.2,40.8]
[1740438454525,3.2078,2535.5,2535.2,41.58893]
[1740438454725,0.78892,2535.3,2535.2,40.8]
[1740438454924,3.99672,2535.3,2534.8,0.78906]
[1740438455132,6.296,2535.6,2535.0,0.00590958]
[1740438455533,3.2078,2535.5,2535.0,0.00590958]
[1740438455734,0.78895,2535.3,2535.0,0.00590958]
[1740438456034,3.2078,2535.2,2535.0,0.00590958]
[1740438456238,3.99676,2535.2,2535.0,0.00590958]
[1740438456434,3.2078,2535.2,2535.0,0.00590958]
[1740438456636,3.99676,2535.2,2535.0,0.00590958]
[1740438456837,3.2078,2535.2,2535.0,0.00590958]
[1740438457345,9.2078,2535.2,2533.4,5.18154]
[1740438457637,3.2078,2533.9,2533.6,0.78943]
[1740438457846,0.7894,2533.8,2533.4,0.7895]
[1740438458045,0.78945,2533.7,2532.9,3.2078]
[1740438458246,3.2078,2533.6,2533.3,0.78952]
[1740438458445,3.2078,2533.7,2533.3,0.78952]
[1740438458639,0.00590958,2533.6,2533.3,0.78952]
[1740438458839,3.2078,2533.4,2533.3,0.78952]
[1740438459036,3.2078,2533.4,2533.2,0.78955]
[1740438459236,3.2078,2533.4,2533.0,0.00590958]
[1740438459444,3.2078,2533.1,2533.0,0.00590958]
[1740438459848,3.2078,2533.1,2533.0,0.79554958]
[1740438460144,3.2078,2533.4,2533.0,0.00590958]
[1740438460341,3.2078,2534.6,2533.0,9.21370958]
[1740438460540,3.2078,2535.2,2533.7,1.9735]
[1740438460745,0.78909,2534.8,2534.4,0.78919]
[1740438460941,0.78909,2534.8,2534.4,0.78918]
[1740438461344,3.2078,2534.9,2534.6,0.78913]
[1740438461542,0.78919,2534.5,2534.3,0.00592136]
[1740438461743,3.21372136,2534.9,2534.3,0.00592136]
[1740438461946,0.78917,2534.5,2534.4,40.8]
[1740438463548,6.78917,2534.5,2534.4,40.8]
[1740438463744,0.78917,2534.5,2534.4,40.8]
[1740438464050,6.0,2534.5,2534.3,0.00592136]
[1740438464250,0.7892,2534.4,2534.3,0.00592136]
[1740438464451,0.7892,2534.4,2534.3,40.80592136]
[1740438464748,0.7892,2534.4,2534.3,0.00592136]
[1740438465142,0.78931,2534.1,2533.7,3.99719]
[1740438465338,1.97316,2534.2,2533.7,3.2078]
[1740438465544,3.2078,2534.3,2533.7,3.2078]
[1740438465848,6.294,2534.6,2533.6,0.78943]
[1740438465849,0.78936,2533.9,2533.6,0.78943]
[1740438466245,3.2078,2534.2,2533.3,3.2078]
[1740438466447,0.78938,2533.9,2533.6,0.78945]
[1740438466849,1.97355,2533.7,2532.7,3.2078]
[1740438467055,3.2078,2533.3,2532.7,3.2078]
[1740438467247,3.99736,2533.3,2533.0,0.78963]
[1740438467756,0.78959,2533.2,2532.9,0.78966]
[1740438467950,0.78959,2533.2,2532.9,0.79558136]
[1740438468157,0.00592136,2533.4,2532.9,0.00592136]
[1740438468454,0.78955,2533.3,2533.0,0.78961]
[1740438468655,0.78955,2533.3,2532.9,0.00592136]
[1740438468848,0.78958,2533.2,2532.9,0.00592136]
[1740438469155,0.79544136,2533.4,2533.1,0.78958]
[1740438469453,6.0221,2533.8,2532.9,0.00592136]
[1740438469454,9.4988,2535.4,2533.3,3.2078]
[1740438469646,1.97234,2535.3,2533.9,3.2078]
[1740438469852,0.78896,2535.2,2534.5,3.2078]
[1740438470050,5.5722,2535.5,2534.8,3.2078]
[1740438470449,0.79483136,2535.4,2535.1,0.78897]
[1740438470647,0.79483136,2535.4,2535.1,3.2078]
[1740438470955,0.79482136,2535.4,2535.0,0.78899]
[1740438471159,0.79482136,2535.4,2535.2,3.2078]
[1740438471343,0.79482136,2535.4,2535.1,0.78897]
[1740438471344,0.00592136,2535.4,2535.1,0.78897]
[1740438471649,0.00592136,2535.4,2535.3,0.78892]
[1740438471849,6.291,2536.8,2535.3,3.99672]
[1740438472148,0.78869,2536.1,2535.5,3.2078]
[1740438472352,0.78869,2536.1,2535.6,0.78883]
[1740438472549,0.78869,2536.1,2535.5,3.2078]
[1740438472750,0.78874,2535.9,2535.5,3.99665]
[1740438472949,6.29,2536.0,2535.6,0.7888]
[1740438473149,6.29,2536.0,2535.4,3.2078]
[1740438473150,0.79461136,2536.1,2535.4,3.2078]
[1740438473346,0.00592136,2536.1,2535.6,0.78881]
[1740438473547,0.79460136,2536.1,2535.7,0.78879]
[1740438473754,0.00592136,2536.1,2535.7,0.78879]
[1740438474350,0.79459136,2536.1,2535.7,0.78879]
[1740438474656,0.79460136,2536.1,2535.4,3.2078]
[1740438474955,0.79461136,2536.1,2535.7,0.78878]
[1740438475346,0.00592136,2536.1,2535.4,3.2078]
[1740438475659,0.00592136,2536.1,2535.5,3.2078]
[1740438475957,0.00592136,2536.1,2535.9,0.78873]
[1740438476147,0.00592136,2536.1,2535.8,3.2078]
[1740438476453,0.00592136,2536.1,2536.0,0.7887]
[1740438477165,0.00592136,2536.1,2535.9,0.78871]
[1740438477457,0.00592136,2536.1,2536.0,0.7887]
[1740438478045,0.00592136,2536.1,2535.9,0.78872]
[1740438478259,0.00592136,2536.1,2535.8,3.2078]
[1740438478553,0.00592136,2536.1,2536.0,0.7887]
[1740438479251,1.36e-06,2536.1,2536.0,0.7887]
[1740438479452,1.36e-06,2536.1,2536.0,6.7887]
[1740438479653,1.36e-06,2536.1,2536.0,0.7887]
[1740438480053,1.36e-06,2536.1,2536.0,41.5887]
[1740438480458,1.36e-06,2536.1,2536.0,0.7887]
[1740438480849,1.36e-06,2536.1,2535.8,3.2078]
[1740438481055,1.36e-06,2536.1,2536.0,0.7887]
[1740438481450,1.36e-06,2536.1,2535.9,0.7887]
[1740438481651,1.36e-06,2536.1,2536.0,0.7887]
[1740438481856,1.36e-06,2536.1,2535.9,0.78871]
[1740438482256,1.36e-06,2536.1,2535.8,3.2078]
[1740438482656,0.78870136,2536.1,2535.8,3.99654]
[1740438483154,1.36e-06,2536.1,2535.8,3.2078]
[1740438483362,1.36e-06,2536.1,2535.9,0.78872]
[1740438483759,0.78873,2535.9,2535.8,2.39408859]
[1740438483957,0.78898,2535.2,2534.9,0.79496136]
[1740438484158,0.78901,2535.0,2534.9,0.00592136]
[1740438485459,6.0,2535.0,2533.8,3.2078]
[1740438485663,1.97293,2534.5,2533.8,3.2078]
[1740438485959,0.7894,2533.8,2533.7,40.8]
[1740438486160,0.78937,2533.9,2533.7,40.8]
[1740438486360,6.279,2534.1,2533.6,3.2078]
[1740438486658,0.78941,2533.8,2533.5,0.00592136]
[1740438486858,0.78941,2533.8,2533.6,40.8]
[1740438487160,0.7894,2533.8,2533.6,44.0078]
[1740438487360,0.78938,2533.9,2533.6,3.2078]
[1740438487564,0.78941,2533.8,2533.6,3.2078]
[1740438487753,0.7894,2533.8,2533.6,3.2078]
[1740438488156,0.78942,2533.7,2533.6,3.2078]
[1740438488560,0.00592136,2534.0,2533.6,3.2078]
[1740438488756,0.78939,2533.8,2533.6,3.2078]
[1740438489456,6.278,2533.7,2533.6,3.2078]
[1740438489653,6.278,2533.7,2533.6,3.99725]
[1740438490454,0.00592136,2534.0,2533.8,0.78938]
[1740438490755,0.00592136,2534.0,2533.9,0.78936]
[1740438491155,0.00592136,2534.0,2533.9,3.99716]
[1740438491955,0.00592136,2534.0,2533.9,44.79716]
[1740438492859,6.276,2535.4,2534.6,1.97282]
[1740438493156,6.276,2535.4,2535.3,0.78892]
[1740438493464,3.2078,2535.9,2535.1,3.2078]
[1740438493660,6.276,2536.0,2535.1,5.1802]
[1740438493862,7.06472,2536.0,2535.7,0.78879]
[1740438494064,6.276,2536.0,2535.9,0.78873]
[1740438494362,21.887,2536.4,2535.7,3.2078]
[1740438494560,6.275,2536.3,2536.1,0.78867]
[1740438494758,6.275,2536.3,2536.0,3.2078]
[1740438494958,6.275,2536.3,2536.2,0.78864]
[1740438495158,0.78847,2536.8,2536.4,0.78856]
[1740438495369,6.274,2536.6,2536.4,0.78856]
[1740438495952,6.274,2536.6,2536.3,3.2078]
[1740438495953,3.99624,2536.9,2536.5,0.78854]
[1740438496154,5.5632,2537.1,2536.3,3.2078]
[1740438496456,6.274,2537.0,2536.9,0.78842]
[1740438496656,6.274,2537.0,2535.7,3.2078]
[1740438496657,0.78863,2536.3,2535.7,3.2078]
[1740438496861,0.7886,2536.4,2535.9,0.78873]
[1740438497067,0.78859,2536.4,2536.0,0.78868]
[1740438497261,6.273,2537.0,2536.0,3.2078]
[1740438497666,0.78851,2536.7,2536.2,3.99642]
[1740438497867,9.4808,2537.0,2536.2,3.2078]
[1740438498667,0.78856,2536.5,2536.2,3.2078]
[1740438498869,0.78856,2536.5,2536.1,0.78866]
[1740438498870,9.4808,2537.0,2535.9,3.2078]
[1740438499066,0.78862,2536.3,2535.9,3.99652]
[1740438499272,3.2078,2536.5,2535.9,3.2078]
[1740438499960,3.2078,2536.5,2536.3,0.78859]
[1740438500372,9.4808,2537.0,2535.9,3.2078]
[1740438500568,0.78852,2536.6,2536.2,0.78861]
[1740438501273,0.78851,2536.7,2535.9,3.2078]
[1740438501568,3.2078,2536.7,2536.0,0.78868]
[1740438501765,3.2078,2536.4,2536.0,0.78867]
[1740438501965,3.2078,2536.4,2535.9,3.2078]
[1740438502267,5.17886,2536.9,2536.1,0.78865]
[1740438502470,0.78855,2536.5,2536.1,0.78866]
[1740438502666,1.97114,2536.8,2536.1,0.78866]
[1740438502866,0.78856,2536.5,2535.9,3.2078]
[1740438503064,1.97117,2536.8,2536.1,0.78866]
[1740438503270,3.2078,2536.4,2536.1,0.78866]
[1740438503572,0.78856,2536.5,2536.2,0.78862]
[1740438503773,3.99636,2536.5,2535.9,3.2078]
[1740438504174,3.2078,2536.5,2535.9,3.2078]
[1740438504370,0.78863,2536.3,2536.0,0.78869]
[1740438505067,3.2078,2536.5,2535.7,0.00592136]
[1740438505368,3.2078,2536.5,2535.9,0.7887]
[1740438505570,0.78863,2536.3,2536.0,0.78869]
[1740438505774,6.265,2536.2,2535.7,1.97789136]
[1740438506074,6.265,2536.2,2535.8,5.17972]
[1740438506277,6.265,2536.2,2536.1,3.99647]
[1740438506668,6.265,2536.2,2536.1,44.79647]
[1740438507171,6.264,2536.5,2536.4,0.78858]
[1740438507473,6.264,2536.5,2536.1,45.97946]
[1740438507474,6.264,2536.5,2536.1,3.2078]
[1740438507869,6.264,2536.5,2536.4,0.78858]
[1740438509171,6.262,2536.7,2536.4,3.99638]
[1740438509379,3.2078,2536.6,2536.5,0.78854]
[1740438509675,6.262,2536.7,2536.6,0.78852]
[1740438510175,6.262,2536.7,2536.5,0.78853]
[1740438510370,0.27965969,2537.3,2536.4,3.2078]
[1740438510572,3.2078,2537.4,2535.3,39.44595]
[1740438510573,3.2078,2537.4,2536.7,5.17897]
[1740438510771,6.261,2537.3,2537.2,0.78833]
[1740438511073,6.261,2537.3,2537.1,0.78834]
[1740438511269,6.261,2537.3,2537.1,0.78836]
[1740438511571,6.261,2537.3,2537.1,0.78834]
[1740438511767,0.78836,2537.1,2537.0,0.00592136]
[1740438511972,6.261,2537.3,2537.0,0.00592136]
[1740438512171,3.2078,2537.1,2537.0,0.00592136]
[1740438512384,3.99616,2537.1,2537.0,0.00592136]
[1740438512582,9.99616,2537.1,2537.0,0.00592136]
[1740438513475,6.78836,2537.1,2537.0,0.00592136]
[1740438513772,7.04636,2537.1,2537.0,0.00592136]
[1740438513979,6.258,2537.1,2537.0,0.00592136]
[1740438514681,3.2078,2537.5,2537.0,0.00592136]
[1740438514875,3.2078,2537.5,2537.0,0.00105631]
[1740438515275,6.257,2537.6,2537.0,0.00105631]
[1740438516076,0.00489389,2537.6,2537.0,0.00105631]
[1740438516273,6.255,2537.5,2537.0,0.00105631]
[1740438516478,0.00489389,2537.6,2537.0,0.00105631]
[1740438516675,0.00489389,2537.6,2537.1,3.2078]
[1740438517979,3.2078,2537.5,2537.1,3.2078]
[1740438518286,0.00489389,2537.6,2537.1,3.2078]
[1740438518487,3.2078,2537.5,2537.1,3.2078]
[1740438519074,0.00489389,2537.6,2537.1,3.2078]
[1740438520078,6.252,2537.5,2537.1,3.2078]
[1740438521187,0.00489389,2537.6,2537.1,3.2078]
[1740438521687,0.00489389,2537.6,2537.4,3.2078]
[1740438522082,0.00489389,2537.6,2537.1,3.2078]
[1740438524386,0.00489389,2537.6,2537.4,3.2078]
[1740438524585,0.00489389,2537.6,2537.4,44.0078]
[1740438525090,13.87376851,2538.0,2537.4,47.94901]
[1740438525291,13.87376851,2538.0,2537.9,3.99591]
[1740438526088,6.246,2538.6,2537.9,3.2078]
[1740438527095,3.2078,2538.5,2537.9,3.2078]
[1740438527482,6.246,2538.6,2537.9,3.2078]
[1740438528290,6.246,2538.6,2538.2,3.2078]
[1740438528593,6.243,2538.6,2538.2,3.2078]
[1740438529303,6.243,2538.6,2538.5,0.78792]
[1740438529594,3.2078,2539.4,2538.7,1.96966]
[1740438529790,36.39540678,2539.8,2538.9,1.96951]
[1740438529993,36.39540678,2539.8,2539.5,0.7876]
[1740438530198,6.241,2539.7,2539.2,5.17706]
[1740438530501,6.241,2539.7,2539.6,0.78758]
[1740438530793,36.39540678,2539.8,2539.4,1.96912]
[1740438530994,1.96984,2538.5,2536.8,3.2078]
[1740438531198,3.2078,2537.4,2536.8,3.2078]
[1740438531594,3.2078,2537.7,2537.3,4.40163868]
[1740438531796,3.2078,2538.1,2537.1,3.2078]
[1740438532000,3.2078,2538.8,2538.3,4.40163868]
[1740438532195,3.2078,2539.4,2538.2,3.2078]
[1740438532400,3.2078,2539.4,2539.3,4.40163868]
[1740438532795,0.00587032,2539.1,2538.7,3.2078]
[1740438533301,0.00587032,2539.1,2539.0,4.40163868]
[1740438537804,3.21367032,2539.1,2539.0,4.40163868]
[1740438538001,3.21367032,2539.1,2539.0,6.20163868]
[1740438539300,0.00587032,2539.1,2539.0,6.20163868]
[1740438539500,3.21367032,2539.1,2539.0,6.20163868]
[1740438539701,4.00141032,2539.1,2539.0,6.20163868]
[1740438540095,3.21367032,2539.1,2539.0,6.20163868]
[1740438540704,0.00587032,2539.1,2539.0,6.20163868]
[1740438541702,0.78762,2539.5,2539.0,6.20163868]
[1740438541903,0.78762,2539.5,2539.4,4.40163868]
[1740438542410,3.2078,2539.7,2539.4,45.20163868]
[1740438542607,3.99537,2539.7,2539.6,4.40163868]
[1740438542908,3.99535,2539.7,2539.6,4.40163868]
[1740438544604,0.78751,2539.9,2539.6,4.40163868]
[1740438544803,3.99526,2540.0,2539.9,4.40163868]
[1740438545105,0.78754,2539.8,2539.3,40.8]
[1740438545506,0.78754,2539.8,2539.7,4.40163868]
[1740438545712,5.17639,2540.1,2539.7,4.40163868]
[1740438545904,3.99523,2540.1,2540.0,4.40163868]
[1740438546107,0.00036132,2539.4,2539.3,40.8]
[1740438546612,0.00036132,2539.4,2539.3,46.8]
[1740438546806,0.00036132,2539.4,2539.3,6.0]
[1740438547307,0.00036132,2539.4,2539.3,46.8]
[1740438547504,0.78758,2539.6,2539.3,6.78766]
[1740438547706,1.96891,2539.7,2539.2,3.2078]
[1740438548004,0.78768,2539.3,2539.2,3.2078]
[1740438548312,1.96906,2539.5,2539.0,1.8]
[1740438548313,0.78774,2539.1,2539.0,1.8]
[1740438548513,3.2078,2539.1,2538.3,7.8117]
[1740438548811,0.78786,2538.7,2538.3,7.8117]
[1740438549710,0.78805,2538.1,2538.0,3.2078]
[1740438551301,0.78805,2538.1,2538.0,9.2078]
[1740438551906,0.78805,2538.1,2538.0,50.0078]
[1740438552309,3.2078,2539.3,2538.0,50.0078]
[1740438552504,0.78795,2538.5,2538.4,3.2078]
[1740438552709,0.78792,2538.5,2538.4,3.2078]
[1740438553011,3.2078,2539.3,2538.4,9.2078]
[1740438553206,3.2078,2539.3,2538.4,3.2078]
[1740438553402,1.96957,2538.9,2538.4,3.2078]
[1740438553608,1.96943,2539.0,2538.4,3.2078]
[1740438553904,1.96935,2539.1,2538.4,3.2078]
[1740438554215,3.2078,2539.4,2538.8,3.99561]
[1740438554216,0.78778,2539.0,2538.8,3.99561]
[1740438554404,0.78779,2539.0,2538.8,0.78781]
[1740438554601,0.78779,2539.0,2538.8,9.2078]
[1740438554800,1.969,2539.6,2538.8,6.0]
[1740438555013,0.78778,2539.0,2538.8,0.78781]
[1740438555311,0.78778,2539.0,2538.8,3.99561]
[1740438555511,0.78778,2539.0,2538.8,9.99561]
[1740438555714,0.78776,2539.1,2538.8,9.2078]
[1740438555901,0.78776,2539.1,2538.8,3.2078]
[1740438556106,0.78772,2539.2,2539.1,0.78772]
[1740438556314,0.78772,2539.2,2539.1,3.99552]
[1740438556615,0.78769,2539.3,2539.2,0.78769]
[1740438556808,0.78763,2539.5,2539.4,0.78763]
[1740438557111,3.2078,2540.6,2539.2,3.2078]
[1740438557302,0.78752,2539.8,2539.7,0.78754]
[1740438557505,1.96858,2540.1,2539.4,3.2078]
[1740438557704,0.78759,2539.7,2539.6,0.78757]
[1740438558112,1.96858,2540.1,2539.6,6.0]
[1740438558311,0.78751,2539.9,2539.8,0.78751]
[1740438558608,0.78752,2539.8,2539.7,3.99534]
[1740438559208,1.96854,2540.2,2539.7,3.99534]
[1740438559209,0.78732,2540.5,2540.4,0.78731]
[1740438559408,3.2078,2541.2,2540.3,3.2078]
[1740438559602,0.78726,2540.7,2540.6,0.78726]
[1740438559801,0.78726,2540.7,2540.6,40.8]
[1740438560113,3.2078,2541.5,2540.6,50.0078]
[1740438560407,0.78717,2541.0,2540.9,3.2078]
[1740438560709,1.96757,2541.4,2540.9,3.2078]
[1740438560710,1.96765,2541.3,2540.9,3.2078]
[1740438561113,0.78717,2541.0,2540.9,3.2078]
[1740438561315,0.78717,2541.0,2540.9,9.2078]
[1740438561316,0.78715,2541.0,2540.9,9.2078]
[1740438561907,0.78715,2541.0,2540.9,3.2078]
[1740438562212,0.78715,2541.0,2540.9,9.2078]
[1740438562805,0.78715,2541.0,2540.9,3.2078]
[1740438566014,0.78727,2540.6,2540.5,0.00590958]
[1740438566212,0.78758,2539.6,2539.0,4.4913]
[1740438566413,0.78758,2539.6,2539.5,3.2078]
[1740438566612,0.78771,2539.2,2539.1,44.0078]
[1740438568109,0.78771,2539.2,2539.1,40.8]
[1740438570208,0.00590958,2539.4,2539.1,40.8]
[1740438570411,2.957,2541.6,2539.2,3.2078]
[1740438570614,1.96832,2540.5,2539.9,0.78748]
[1740438570920,1.96832,2540.5,2539.7,3.2078]
[1740438571115,1.96832,2540.5,2540.0,3.2078]
[1740438571318,0.78743,2540.1,2540.0,3.2078]
[1740438572315,0.78749,2539.9,2539.8,0.00590958]
[1740438572615,0.78749,2539.9,2539.8,40.80590958]
[1740438573612,1.96838,2540.4,2539.8,40.80590958]
[1740438573917,0.7874,2540.2,2540.1,3.2078]
[1740438574111,1.96821,2540.6,2539.7,3.2078]
[1740438574318,0.78741,2540.2,2540.1,3.2078]
[1740438574617,3.2078,2540.7,2540.1,3.2078]
[1740438574618,5.17594,2540.7,2540.1,3.2078]
[1740438574820,0.78738,2540.3,2540.2,0.78738]
[1740438575220,0.78738,2540.3,2540.2,47.58738]
[1740438575420,0.00589958,2540.5,2540.2,40.8]
[1740438575617,0.00589958,2540.5,2540.4,3.99514]
[1740438576120,1.96791,2541.0,2540.3,3.2078]
[1740438576320,0.78725,2540.7,2540.3,3.2078]
[1740438576516,1.9678,2541.1,2540.3,3.2078]
[1740438576721,0.78724,2540.8,2540.6,0.78727]
[1740438576920,1.96788,2541.0,2540.5,0.78728]
[1740438577117,0.78725,2540.7,2540.6,3.99505]
[1740438577323,0.78723,2540.8,2540.6,0.78725]
[1740438577519,0.78724,2540.7,2540.6,3.2078]
[1740438577723,3.2078,2541.2,2540.2,44.0078]
[1740438577925,0.78732,2540.5,2540.3,0.78734]
[1740438578116,0.78732,2540.5,2540.2,44.0078]
[1740438578117,0.78732,2540.5,2540.4,0.78734]
[1740438578323,0.78729,2540.6,2540.5,0.78728]
[1740438578523,1.96795,2541.0,2540.2,44.0078]
[1740438578722,0.7873,2540.6,2540.5,0.78729]
[1740438579128,0.7873,2540.5,2540.4,0.78732]
[1740438579527,0.78701,2541.5,2541.4,0.787]
[1740438579727,3.2078,2542.0,2541.3,1.96765]
[1740438580026,0.78692,2541.8,2541.6,0.78696]
[1740438580218,3.2078,2542.0,2541.7,41.58692]
[1740438580422,0.7869,2541.8,2541.7,40.8]
[1740438581731,0.78708,2541.3,2541.0,0.78713]
[1740438582124,3.2078,2541.7,2541.1,40.8]
[1740438582329,3.2078,2541.7,2541.1,44.0078]
[1740438582529,3.2078,2541.7,2541.4,0.787]
[1740438582833,3.2078,2541.7,2540.7,3.21370958]
[1740438583126,0.78721,2540.8,2540.7,0.00590958]
[1740438585930,3.99501,2540.8,2540.7,0.00590958]
[1740438586930,3.2078,2540.8,2540.7,0.79314958]
[1740438587332,1e-08,2541.1,2541.0,0.78715]
[1740438587724,1e-08,2541.1,2541.0,6.78715]
[1740438588234,1e-08,2541.1,2541.0,47.58715]
[1740438588435,0.00274766,2541.8,2541.3,1.96762]
[1740438588629,1.96736,2541.7,2541.0,44.0078]
[1740438588825,0.7871,2541.2,2541.0,44.0078]
[1740438589128,0.78712,2541.1,2541.0,3.2078]
[1740438589523,1.96737,2541.7,2541.0,50.0078]
[1740438589727,1.96734,2541.7,2541.0,44.0078]
[1740438589927,0.78707,2541.3,2541.0,44.0078]
[1740438590131,1.96734,2541.7,2541.0,44.0078]
[1740438590132,0.7871,2541.2,2541.0,44.0078]
[1740438590332,1.96744,2541.6,2541.0,44.0078]
[1740438590529,0.78707,2541.3,2541.0,44.0078]
[1740438591123,1.5739,2541.4,2541.0,44.0078]
[1740438591327,3.21054766,2541.8,2541.0,44.0078]
[1740438591526,0.7871,2541.2,2541.0,44.0078]
[1740438591727,1.96742,2541.6,2541.0,44.0078]
[1740438591932,1.98999,2541.7,2541.0,44.0078]
[1740438591933,0.78704,2541.4,2541.0,44.0078]
[1740438592135,0.0226,2541.7,2541.0,44.0078]
[1740438592533,0.78706,2541.4,2541.0,44.79494]
[1740438592739,1.96742,2541.6,2541.0,44.0078]
[1740438592928,3.2078,2541.1,2540.7,0.00590958]
[1740438593129,3.2078,2540.9,2539.6,3.2078]
[1740438593337,0.78767,2539.4,2539.3,3.2078]
[1740438593637,0.78767,2539.4,2539.3,40.8]
[1740438593933,6.78767,2539.4,2539.3,40.8]
[1740438594135,1.96939,2539.1,2538.4,3.2078]
[1740438594334,0.78786,2538.8,2538.7,3.2078]
[1740438594539,1.5754,2539.0,2538.5,3.21370958]
[1740438594734,0.78789,2538.6,2538.5,0.00590958]
[1740438595038,1.5754,2539.0,2538.7,0.78785]
[1740438595240,1.5754,2539.0,2538.7,3.99565]
[1740438595429,2.36318,2539.0,2538.7,3.99565]